bitfinex/quotes_ETHUSD_20240824
["timestamp","ask_amount","ask_price","bid_price","bid_amount"]
[1724475769342,9.7515,2750.8,2750.2,3.63597]
[1724475769675,3.63548,2750.7,2750.0,5.92234]
[1724475769838,9.7515,2750.8,2750.1,0.6286002]
[1724475770048,9.7515,2750.8,2750.3,3.63596]
[1724475770760,2.3015,2750.8,2750.3,3.63596]
[1724475772006,5.93682,2750.8,2750.3,3.63596]
[1724475772236,5.93655,2751.0,2750.3,3.63596]
[1724475772446,11.08496,2751.1,2750.5,3.63557]
[1724475772822,11.08496,2751.1,2750.3,3.999466]
[1724475773003,2.3015,2750.8,2750.0,2.2861]
[1724475773241,2.3015,2750.4,2749.5,2.2861]
[1724475773561,3.63604,2750.3,2749.8,3.63657]
[1724475774319,2.3015,2750.4,2749.8,3.63657]
[1724475774518,5.93735,2750.4,2749.8,3.63657]
[1724475774681,11.08581,2750.5,2749.8,3.63657]
[1724475774682,7.45,2750.5,2749.9,3.63642]
[1724475774870,7.45,2750.5,2750.0,3.63625]
[1724475775470,7.45,2750.5,2750.1,3.63612]
[1724475775818,5.93693,2750.7,2750.1,3.63612]
[1724475776517,2.3015,2750.7,2750.1,3.63612]
[1724475776722,2.3015,2750.7,2750.2,3.63602]
[1724475776926,5.93694,2750.7,2750.2,3.63602]
[1724475777105,5.93694,2750.7,2750.1,4.228412]
[1724475777422,5.93694,2750.7,2750.1,4.228372]
[1724475777925,3.63559,2750.6,2750.1,4.228372]
[1724475779688,2.3015,2750.7,2749.7,3.6367]
[1724475779888,3.63618,2750.2,2749.7,3.63674]
[1724475780623,2.3015,2750.3,2749.7,3.63666]
[1724475781143,3.63574,2750.5,2749.9,3.63648]
[1724475781348,3.63577,2750.5,2749.9,3.63648]
[1724475781538,3.63584,2750.4,2749.9,3.63648]
[1724475782320,3.63584,2750.4,2749.7,3.63664]
[1724475782500,3.63584,2750.4,2749.8,0.592274]
[1724475782688,3.63584,2750.4,2749.8,4.228814]
[1724475783022,3.63584,2750.4,2749.8,0.592274]
[1724475783615,3.63584,2750.4,2749.9,3.63647]
[1724475784202,2.3209,2750.3,2749.9,3.63647]
[1724475785223,2.3209,2750.3,2749.9,8.000251]
[1724475785602,3.63571,2750.5,2750.0,3.63634]
[1724475786332,9.7709,2750.6,2750.0,3.63634]
[1724475786684,13.40648,2750.6,2750.0,3.63634]
[1724475787098,13.40648,2750.6,2750.2,3.63605]
[1724475787099,9.7709,2750.6,2750.2,3.63605]
[1724475788089,9.7709,2750.6,2750.0,3.63625]
[1724475788429,9.7709,2750.6,2750.0,7.27254]
[1724475788430,13.40647,2750.6,2750.0,7.27254]
[1724475788623,13.40647,2750.6,2750.0,3.63625]
[1724475788876,13.40647,2750.6,2750.0,7.27254]
[1724475790041,13.40647,2750.6,2750.0,3.63625]
[1724475790231,13.40647,2750.6,2750.0,7.27254]
[1724475790631,13.40647,2750.6,2750.0,3.63625]
[1724475791231,13.40647,2750.6,2749.6,6.08134]
[1724475791232,3.63605,2750.3,2749.6,6.08134]
[1724475791456,8.612207,2750.5,2749.9,3.63648]
[1724475791653,4.976377,2750.5,2749.9,3.63648]
[1724475791855,3.63573,2750.5,2749.9,3.63648]
[1724475792220,3.63573,2750.5,2750.0,3.63636]
[1724475792831,9.7709,2750.6,2750.1,3.63622]
[1724475793035,9.7709,2750.6,2750.0,3.63636]
[1724475793556,13.40652,2750.6,2750.0,3.63636]
[1724475794258,13.40652,2750.6,2750.0,7.27265]
[1724475794554,9.7709,2750.6,2750.2,3.63604]
[1724475795517,9.7709,2750.6,2750.1,3.63609]
[1724475797449,2.3209,2750.6,2750.1,3.63609]
[1724475797771,5.95655,2750.6,2749.9,3.63637]
[1724475797948,5.95655,2750.6,2750.0,3.63628]
[1724475802467,5.95655,2750.6,2750.1,3.63622]
[1724475815125,5.95655,2750.6,2749.9,4.22379806]
[1724475815257,5.95655,2750.6,2750.0,3.63635]
[1724475815453,9.5922,2750.6,2750.0,3.63635]
[1724475815657,5.95655,2750.6,2750.1,3.63622]
[1724475816113,5.95655,2750.6,2750.1,6.88162181]
[1724475816313,3.63565,2750.6,2750.1,6.88162181]
[1724475817266,2.2556,2750.5,2750.1,3.63622]
[1724475818786,3.63538,2750.8,2750.1,3.63622]
[1724475818787,5.89098,2750.8,2750.1,3.63622]
[1724475819025,3.63543,2750.7,2750.1,3.63622]
[1724475819205,3.63544,2750.7,2750.1,3.63622]
[1724475823009,3.63544,2750.7,2750.1,7.27236]
[1724475823198,3.63544,2750.7,2750.2,0.727236]
[1724475823397,3.63544,2750.7,2750.1,3.63614]
[1724475823595,3.63544,2750.7,2750.1,7.27228]
[1724475823857,3.63544,2750.7,2750.1,3.63614]
[1724475826844,2.2556,2750.8,2750.4,3.63582]
[1724475827185,2.2556,2750.8,2750.3,3.63584]
[1724475827407,2.2556,2750.8,2750.4,4.248714]
[1724475828074,2.2556,2750.8,2750.4,0.612904]
[1724475828223,5.89098,2750.8,2750.3,3.63584]
[1724475831380,2.3334,2750.6,2749.9,0.58741806]
[1724475832175,2.3334,2750.6,2750.0,3.63627]
[1724475833044,2.3334,2750.6,2750.1,3.63622]
[1724475834015,3.63547,2750.7,2750.1,6.12942]
[1724475834126,5.96882,2750.8,2750.2,4.612659]
[1724475834333,5.96882,2750.8,2750.2,4.612589]
[1724475834736,3.63525,2750.9,2750.3,3.63595]
[1724475835268,7.27052,2750.9,2750.3,3.63595]
[1724475835426,3.63525,2750.9,2750.3,4.7101239]
[1724475835627,7.27051,2750.9,2750.3,4.7101239]
[1724475835822,3.63505,2751.0,2750.4,3.63581]
[1724475836051,3.63505,2751.0,2750.5,3.63566]
[1724475837240,2.3334,2751.1,2750.5,7.27126]
[1724475837566,2.3334,2751.1,2750.6,0.727126]
[1724475838979,2.3334,2751.1,2750.6,4.362666]
[1724475840600,2.3334,2751.1,2750.6,0.727126]
[1724475840743,3.63504,2751.0,2750.6,0.727126]
[1724475842271,3.63538,2750.8,2750.2,3.63601]
[1724475842585,2.3459,2750.9,2750.2,3.63601]
[1724475842748,3.63534,2750.8,2750.2,3.63601]
[1724475844257,3.63534,2750.8,2750.3,3.63595]
[1724475845670,2.3459,2750.9,2750.3,3.63595]
[1724475845959,2.3459,2750.9,2750.4,0.727196]
[1724475846158,5.98111,2750.9,2750.4,0.727196]
[1724475848293,3.63511,2751.0,2750.4,6.695056]
[1724475848682,3.63511,2751.0,2750.4,10.330796]
[1724475849031,3.63511,2751.0,2750.4,6.695036]
[1724475849298,3.63511,2751.0,2750.4,10.330786]
[1724475849498,3.63511,2751.0,2750.5,1.0330786]
[1724475850058,2.3459,2751.1,2750.5,1.0330786]
[1724475850265,2.3459,2751.1,2750.6,3.63555]
[1724475851400,2.3459,2751.1,2750.6,3.63549]
[1724475851566,11.08484,2751.2,2750.6,7.27097]
[1724475851775,11.08484,2751.2,2750.7,3.63543]
[1724475852403,11.08484,2751.2,2750.6,4.69909486]
[1724475852924,14.71969,2751.2,2750.6,4.69909486]
[1724475853096,11.08484,2751.2,2750.6,4.69909486]
[1724475853422,14.7197,2751.2,2750.6,4.69909486]
[1724475853988,3.63484,2751.2,2750.7,0.46990949]
[1724475854193,3.63484,2751.2,2750.7,0.46831287]
[1724475854413,3.63484,2751.2,2750.6,8.33457486]
[1724475854725,3.63484,2751.2,2750.6,8.33459486]
[1724475855085,3.63484,2751.2,2750.6,4.69909486]
[1724475856816,3.63484,2751.2,2750.6,8.33457486]
[1724475857124,3.63484,2751.2,2750.8,2.3321]
[1724475858631,2.3459,2751.3,2750.8,7.03397249]
[1724475858846,11.0844,2751.5,2750.8,7.03397249]
[1724475859429,11.0844,2751.5,2751.0,3.63501]
[1724475860134,3.63452,2751.4,2750.8,7.03396249]
[1724475860722,3.63452,2751.4,2750.8,10.66917249]
[1724475860922,3.63452,2751.4,2750.9,1.06691725]
[1724475863005,3.63472,2751.3,2750.8,2.3321]
[1724475864140,3.63444,2751.5,2750.4,6.10996]
[1724475864141,3.63503,2751.1,2750.4,6.10996]
[1724475864347,6.08433,2751.1,2750.4,9.74571]
[1724475864720,9.71934,2751.1,2750.4,9.74571]
[1724475864902,6.08431,2751.1,2750.4,9.74571]
[1724475865261,6.08431,2751.1,2750.5,0.974571]
[1724475866344,6.08431,2751.1,2750.5,4.610241]
[1724475867127,9.71929,2751.1,2750.5,4.610241]
[1724475867440,6.08429,2751.1,2750.5,4.610241]
[1724475869764,6.08429,2751.1,2750.6,3.63556]
[1724475870624,3.63551,2750.7,2750.1,2.4742]
[1724475870932,2.4493,2750.5,2750.2,3.63607]
[1724475871964,6.0846,2750.8,2750.2,3.63607]
[1724475872348,7.35658,2750.8,2750.2,3.63607]
[1724475874657,7.35658,2750.8,2750.2,3.63601]
[1724475874853,6.0846,2750.8,2750.2,3.63601]
[1724475877085,2.4493,2750.8,2749.8,6.11076]
[1724475877258,3.6358,2750.5,2749.8,6.11076]
[1724475877462,3.6358,2750.5,2750.0,3.63635]
[1724475880087,6.08467,2750.8,2750.2,3.63601]
[1724475880287,7.356646,2750.8,2750.2,3.63601]
[1724475881589,3.63551,2750.7,2750.0,3.63625]
[1724475881745,3.63551,2750.7,2750.1,3.63615]
[1724475882548,2.4493,2750.8,2750.3,3.63586]
[1724475882900,2.4493,2750.8,2750.4,3.63573]
[1724475884072,2.4493,2750.8,2750.1,6.08575]
[1724475884267,2.4493,2750.8,2750.1,6.694325]
[1724475884474,2.4493,2750.8,2750.3,3.63589]
[1724475886878,2.4493,2750.8,2750.1,6.694325]
[1724475886879,6.08463,2750.8,2750.1,10.330475]
[1724475887084,3.63544,2750.7,2750.1,9.7219]
[1724475887279,3.63544,2750.7,2750.1,6.08574]
[1724475887485,3.63544,2750.7,2750.2,3.63608]
[1724475887667,3.63544,2750.7,2750.1,9.72189]
[1724475888374,3.63544,2750.7,2750.1,3.63614]
[1724475888700,7.27095,2750.7,2750.1,3.63614]
[1724475888888,3.63582,2750.5,2749.9,6.08598]
[1724475889104,2.2986,2750.4,2749.9,9.72238]
[1724475890171,5.93444,2750.4,2749.9,6.08598]
[1724475891217,2.2986,2750.4,2749.9,6.08598]
[1724475891564,2.2986,2750.4,2749.9,3.63638]
[1724475892207,2.2986,2750.4,2749.9,7.2728]
[1724475892402,2.2986,2750.4,2749.9,3.63638]
[1724475893215,5.93453,2750.4,2749.8,3.6366]
[1724475893420,5.93453,2750.4,2749.7,6.0863]
[1724475893758,5.93453,2750.4,2749.7,7.2605466]
[1724475894037,2.2986,2750.4,2749.9,7.2728]
[1724475894596,2.2986,2750.4,2749.8,3.6366]
[1724475894829,5.93444,2750.4,2749.8,3.6366]
[1724475895093,5.93444,2750.4,2749.9,3.63645]
[1724475895277,6.891447,2750.4,2749.9,3.63645]
[1724475899616,3.63599,2750.3,2749.7,3.63665]
[1724475899890,5.93481,2750.2,2749.5,3.637]
[1724475900095,3.63626,2750.1,2749.5,3.637]
[1724475900248,5.93481,2750.2,2749.5,3.63694]
[1724475900452,5.93481,2750.2,2749.6,3.63681]
[1724475901553,2.2986,2750.2,2749.7,3.63675]
[1724475903257,2.2986,2750.2,2749.8,3.63652]
[1724475903459,11.08559,2750.6,2749.9,3.63648]
[1724475903460,2.4269,2750.5,2749.9,3.63648]
[1724475903858,6.0626,2750.5,2749.9,3.63648]
[1724475904203,6.0626,2750.5,2749.9,7.27282]
[1724475904204,7.777419,2750.5,2749.9,7.27282]
[1724475904499,7.777419,2750.5,2749.9,3.6364]
[1724475905191,7.777419,2750.5,2749.9,7.27281]
[1724475905397,3.63559,2750.6,2750.0,3.63628]
[1724475905909,7.27124,2750.6,2750.0,3.63628]
[1724475906405,3.63571,2750.5,2749.9,7.2728]
[1724475906604,3.63571,2750.5,2750.0,3.63636]
[1724475906903,3.63571,2750.5,2749.9,3.6364]
[1724475907672,3.63571,2750.5,2749.9,7.27281]
[1724475907874,3.63571,2750.5,2749.9,3.6364]
[1724475908185,2.3139,2750.3,2749.8,3.63662]
[1724475908392,2.3139,2750.3,2749.9,3.63648]
[1724475910573,2.3139,2750.3,2749.7,7.27332]
[1724475910774,2.3139,2750.3,2749.8,3.63661]
[1724475911811,2.3139,2750.4,2749.4,1.89664021]
[1724475912006,5.95013,2750.1,2749.5,7.27382]
[1724475912812,2.3139,2750.1,2749.5,3.63691]
[1724475913032,3.63588,2750.4,2749.5,3.63691]
[1724475913033,2.3139,2750.3,2749.5,2.3754]
[1724475913312,2.3139,2750.3,2749.8,3.63655]
[1724475914388,2.3139,2750.3,2749.9,3.63641]
[1724475914819,2.3139,2750.3,2749.9,4.363706]
[1724475915017,3.63571,2750.5,2750.0,3.63636]
[1724475915317,5.94961,2750.5,2750.0,3.63636]
[1724475915523,5.94961,2750.5,2750.1,3.63622]
[1724475915524,2.3139,2750.5,2750.1,3.63622]
[1724475915724,6.63533,2750.8,2750.1,3.63622]
[1724475915725,5.94939,2750.7,2750.1,3.70893434]
[1724475915925,7.27126,2750.6,2750.0,3.63636]
[1724475916097,3.63557,2750.6,2750.0,3.63636]
[1724475916290,7.27122,2750.6,2750.0,3.63636]
[1724475917097,7.27123,2750.6,2750.0,3.63636]
[1724475917728,3.63557,2750.6,2750.0,3.63628]
[1724475918224,3.63557,2750.6,2750.0,3.63627]
[1724475918530,3.63557,2750.6,2750.0,8.42703229]
[1724475918892,3.63557,2750.6,2750.0,8.42702229]
[1724475919094,3.63557,2750.6,2750.0,4.79074229]
[1724475919405,7.27122,2750.6,2750.0,4.79074229]
[1724475919600,11.08522,2750.9,2749.8,5.53304935]
[1724475919834,2.3139,2750.8,2749.7,5.53320876]
[1724475920027,5.95008,2750.2,2749.6,5.53337876]
[1724475920227,5.95008,2750.2,2749.6,3.63681]
[1724475920616,5.95008,2750.2,2749.6,7.27362]
[1724475921197,5.95008,2750.2,2749.6,7.27363]
[1724475921501,2.3139,2750.2,2749.7,3.63674]
[1724475922507,3.63602,2750.3,2749.8,3.63661]
[1724475923107,5.97978,2750.4,2749.9,3.63648]
[1724475923932,2.3439,2750.4,2750.0,3.63635]
[1724475928039,3.63573,2750.5,2750.0,3.63635]
[1724475929055,7.27154,2750.5,2749.9,2.2807]
[1724475929454,3.63573,2750.5,2749.9,5.91717]
[1724475929640,7.27151,2750.5,2749.9,5.91717]
[1724475929948,3.63585,2750.4,2749.9,3.63647]
[1724475932331,3.63585,2750.4,2749.9,7.27294]
[1724475932532,3.63585,2750.4,2749.9,4.78149376]
[1724475932735,2.3439,2750.6,2750.1,3.63621]
[1724475933135,5.97949,2750.6,2750.1,3.63621]
[1724475933460,2.3439,2750.6,2750.2,3.63606]
[1724475934025,2.3439,2750.6,2750.1,5.91685]
[1724475934227,2.3439,2750.6,2750.1,10.62284038]
[1724475934442,2.3439,2750.8,2750.1,6.98668038]
[1724475934637,11.08528,2750.9,2750.3,7.27185]
[1724475934863,11.08528,2750.9,2750.3,7.27178]
[1724475935160,7.45,2750.9,2750.4,3.63582]
[1724475935363,7.45,2750.9,2750.5,0.727171]
[1724475935660,7.45,2750.9,2750.3,3.63589]
[1724475935661,2.3439,2750.8,2750.3,3.63589]
[1724475936569,2.3439,2750.8,2750.3,7.27175]
[1724475936763,2.3439,2750.8,2750.3,3.63586]
[1724475937263,2.3439,2750.8,2750.3,7.27174]
[1724475937563,2.3439,2750.8,2750.4,3.63581]
[1724475939463,7.27027,2751.0,2750.5,2.2807]
[1724475939634,3.63512,2751.0,2750.4,3.63575]
[1724475939834,7.27025,2751.0,2750.4,3.63575]
[1724475940875,3.63512,2751.0,2750.4,4.590996]
[1724475941048,3.63482,2751.2,2750.6,6.08453]
[1724475942238,3.63482,2751.2,2750.7,3.63539]
[1724475944057,6.63456,2751.4,2750.7,3.63539]
[1724475944297,6.63456,2751.4,2750.6,6.08453]
[1724475944298,3.63456,2751.4,2750.8,3.6352]
[1724475944488,3.63456,2751.4,2750.9,2.81262]
[1724475944952,3.63438,2751.5,2750.9,6.44777]
[1724475945147,3.63438,2751.5,2751.0,3.63501]
[1724475945400,5.9575,2751.7,2751.1,3.70753974]
[1724475945858,5.9575,2751.7,2751.1,3.63485]
[1724475946295,5.9575,2751.7,2751.2,3.63477]
[1724475946953,5.9575,2751.7,2751.0,3.63496]
[1724475947153,3.63425,2751.6,2751.0,3.63496]
[1724475947392,2.3233,2751.5,2751.0,3.63496]
[1724475948295,2.3233,2751.5,2751.0,7.2699]
[1724475948459,2.3233,2751.5,2751.0,7.26988]
[1724475948661,2.3233,2751.5,2751.0,8.03322]
[1724475948971,2.3233,2751.5,2751.1,3.63488]
[1724475957269,3.63425,2751.6,2751.1,6.08398]
[1724475959929,5.95739,2751.8,2751.2,3.63476]
[1724475960427,3.63413,2751.7,2751.1,6.0839]
[1724475960626,7.26835,2751.7,2751.1,7.168486]
[1724475960925,7.26835,2751.7,2751.1,3.6348]
[1724475961296,2.3443,2751.5,2751.1,3.6348]
[1724475963308,5.97871,2751.5,2750.9,7.27019]
[1724475963500,5.97871,2751.5,2750.9,3.63508]
[1724475963718,5.97871,2751.5,2751.0,3.63498]
[1724475964928,3.63413,2751.7,2751.0,4.610915]
[1724475965087,3.63413,2751.7,2751.1,2.4891]
[1724475965287,3.63413,2751.7,2751.1,6.12392]
[1724475966234,3.63392,2751.9,2751.1,6.12392]
[1724475966235,3.63392,2751.9,2751.2,4.20328113]
[1724475966447,3.63392,2751.9,2751.3,0.07268015]
[1724475966599,3.63392,2751.9,2751.2,3.63472]
[1724475966794,3.63392,2751.9,2751.3,0.612382]
[1724475967440,3.63392,2751.9,2751.4,3.63449]
[1724475969005,3.63392,2751.9,2751.4,6.12359]
[1724475969208,3.0,2752.3,2751.4,6.12359]
[1724475969209,2.3443,2752.2,2751.6,3.63413]
[1724475969426,2.3443,2752.2,2751.7,3.63403]
[1724475970002,5.3443,2752.4,2751.8,6.12305]
[1724475970202,7.00801517,2752.4,2751.8,6.12305]
[1724475970414,3.63334,2752.3,2751.8,2.4891]
[1724475970747,2.3443,2752.1,2751.6,3.63416]
[1724475971735,5.97789,2752.1,2751.6,3.63416]
[1724475971942,5.97789,2752.1,2751.4,3.63445]
[1724475972117,3.63385,2751.9,2751.4,3.63445]
[1724475972296,7.2678,2751.9,2751.3,4.2031567]
[1724475972499,7.2678,2751.9,2751.4,3.63451]
[1724475972500,3.63385,2751.9,2751.4,3.63451]
[1724475973440,2.3443,2752.0,2751.4,7.26892]
[1724475973737,9.61222,2751.9,2751.3,3.63464]
[1724475974036,6.9991929,2751.9,2751.3,3.63464]
[1724475975425,10.6331329,2751.9,2751.3,3.63464]
[1724475976134,6.9991829,2751.9,2751.3,3.63464]
[1724475976506,10.6331329,2751.9,2751.3,3.63464]
[1724475977906,6.9991829,2751.9,2751.3,3.63464]
[1724475978606,5.97824,2751.9,2751.3,3.63464]
[1724475978807,5.97824,2751.9,2751.4,6.12354]
[1724475979414,9.61218,2751.9,2751.4,2.4891]
[1724475979608,5.97824,2751.9,2751.4,2.4891]
[1724475980131,9.61217,2751.9,2751.3,3.63463]
[1724475980442,5.97823,2751.9,2751.3,3.63463]
[1724475980647,5.97823,2751.9,2751.3,4.610471]
[1724475983614,5.97823,2751.9,2751.3,4.560471]
[1724475989823,5.97823,2751.9,2751.3,3.58463]
[1724475991554,5.97823,2751.9,2751.4,3.6345]
[1724475993466,3.63406,2751.8,2751.2,9.75847]
[1724475993924,3.63406,2751.8,2751.2,7.26937]
[1724475994258,3.63406,2751.8,2751.3,1.26371553]
[1724475995064,6.939417,2751.9,2751.3,3.6346]
[1724475995221,10.573367,2751.9,2751.3,3.6346]
[1724475995757,3.63399,2751.8,2751.3,3.6346]
[1724475996543,10.573367,2751.9,2751.3,3.6346]
[1724475997362,3.63401,2751.8,2751.3,3.6346]
[1724475998239,6.939417,2751.9,2751.3,3.6346]
[1724475998766,10.573357,2751.9,2751.3,3.6346]
[1724475999120,6.939417,2751.9,2751.3,3.6346]
[1724475999747,10.573347,2751.9,2751.3,3.6346]
[1724475999946,6.939417,2751.9,2751.3,3.6346]
[1724476000347,10.573347,2751.9,2751.3,3.6346]
[1724476001497,3.63398,2751.8,2751.3,3.6346]
[1724476002725,10.573347,2751.9,2751.3,3.6346]
[1724476002928,2.2874,2751.7,2751.2,0.75963393]
[1724476003134,2.2874,2751.7,2751.1,3.63479]
[1724476003135,5.92163,2751.7,2751.1,3.63479]
[1724476003338,5.92163,2751.7,2751.2,1.26378589]
[1724476003579,5.92163,2751.7,2751.1,3.63479]
[1724476004093,2.2874,2751.7,2751.2,3.63471]
[1724476004240,5.9213,2751.9,2751.2,3.63471]
[1724476005348,3.63406,2751.8,2751.2,3.63471]
[1724476009152,9.55526,2751.9,2751.2,3.63466]
[1724476009358,10.510786,2751.9,2751.2,3.63466]
[1724476009595,6.876826,2751.9,2751.2,7.26935]
[1724476010290,10.510806,2751.9,2751.2,3.63466]
[1724476010451,3.63399,2751.8,2751.2,3.63466]
[1724476010855,3.63399,2751.8,2751.3,1.26376657]
[1724476011050,4.6850716,2751.8,2751.2,3.63466]
[1724476011553,4.6850716,2751.8,2751.2,7.26935]
[1724476011905,4.6850716,2751.8,2751.3,1.26376684]
[1724476012109,4.6850716,2751.8,2751.2,7.26935]
[1724476012256,4.6850716,2751.8,2751.3,1.26376617]
[1724476012453,4.6850716,2751.8,2751.2,3.63466]
[1724476012957,4.6850716,2751.8,2751.2,7.26935]
[1724476013184,4.6850716,2751.8,2751.3,4.89841095]
[1724476013365,4.6850716,2751.8,2751.3,3.63464]
[1724476019654,2.2874,2751.9,2751.5,3.63428]
[1724476019927,2.2874,2751.9,2751.5,7.26859]
[1724476020229,2.2874,2751.9,2751.5,3.63428]
[1724476022226,2.2874,2751.9,2751.3,7.26909]
[1724476022459,5.92127,2751.9,2751.3,3.63452]
[1724476022658,7.176772,2751.9,2751.3,7.26908]
[1724476022967,3.63399,2751.8,2751.3,3.63452]
[1724476023619,3.63399,2751.8,2751.3,7.26908]
[1724476023823,2.2874,2751.9,2751.4,4.89825319]
[1724476024056,5.92126,2751.9,2751.4,3.63448]
[1724476025533,5.92126,2751.9,2751.3,3.63452]
[1724476025780,3.63401,2751.8,2751.4,1.26373475]
[1724476026060,3.63401,2751.8,2751.3,3.63452]
[1724476026251,3.63401,2751.8,2751.4,1.263746]
[1724476026452,3.63401,2751.8,2751.3,3.63452]
[1724476026639,3.63401,2751.8,2751.4,1.263746]
[1724476026963,3.63401,2751.8,2751.3,7.26908]
[1724476027159,3.63401,2751.8,2751.4,2.06659407]
[1724476027324,3.63401,2751.8,2751.3,7.26908]
[1724476027524,3.63401,2751.8,2751.4,1.26372689]
[1724476027837,3.63401,2751.8,2751.3,3.63452]
[1724476028238,3.63401,2751.8,2751.0,3.66699729]
[1724476028239,3.63433,2751.6,2751.0,1.89908483]
[1724476028451,3.63433,2751.6,2751.1,3.15968947]
[1724476028452,0.604763,2751.5,2751.1,3.15968947]
[1724476028650,6.04789,2751.4,2750.9,0.75963393]
[1724476028847,6.04789,2751.4,2751.0,1.26394543]
[1724476029034,6.04789,2751.4,2750.8,4.39486393]
[1724476029234,6.04789,2751.4,2750.9,3.1599864]
[1724476029478,6.04789,2751.4,2750.7,0.75963393]
[1724476029479,2.4133,2751.3,2750.7,0.75963393]
[1724476029708,2.4133,2750.9,2750.5,0.75963393]
[1724476030012,2.4133,2750.5,2750.1,0.75963393]
[1724476030218,2.4133,2750.5,2749.8,4.39615393]
[1724476030370,6.04902,2750.5,2749.9,6.79748365]
[1724476030570,6.04902,2750.5,2750.0,1.26435521]
[1724476030771,6.04902,2750.5,2749.9,5.53304317]
[1724476031000,2.4133,2750.5,2749.9,9.16942573]
[1724476031209,2.4133,2750.5,2750.1,3.63612]
[1724476034905,2.4133,2750.7,2750.1,3.63612]
[1724476035176,2.4133,2750.7,2750.2,3.63601]
[1724476035407,2.4133,2750.9,2750.3,3.63596]
[1724476035611,5.4133,2750.9,2750.4,3.63575]
[1724476036175,5.4133,2750.9,2750.3,3.63587]
[1724476036711,5.4133,2750.9,2750.4,3.63582]
[1724476037064,2.4133,2750.9,2750.4,3.63582]
[1724476038478,2.4133,2750.9,2750.4,3.63576]
[1724476049908,6.04851,2750.9,2750.4,3.63576]
[1724476050109,7.016871,2750.9,2750.3,3.63596]
[1724476051695,4.603571,2750.9,2750.3,3.63596]
[1724476051894,2.3283,2750.8,2750.3,3.63596]
[1724476053203,2.3283,2750.8,2750.4,3.63582]
[1724476064614,2.3283,2750.8,2750.4,7.27157]
[1724476064785,2.3283,2750.8,2750.5,3.63569]
[1724476064985,2.3283,2750.8,2750.4,4.362907]
[1724476064986,2.3283,2750.8,2750.6,3.63551]
[1724476065198,2.417,2751.0,2750.7,3.63541]
[1724476065400,7.45,2751.3,2751.1,3.6349]
[1724476065566,2.417,2751.4,2751.1,3.6349]
[1724476066173,2.3546,2751.3,2750.7,7.27071]
[1724476066374,5.98924,2751.3,2750.7,7.27071]
[1724476066805,2.3546,2751.3,2750.9,3.63513]
[1724476069175,2.3546,2751.3,2750.9,7.27021]
[1724476069618,2.3546,2751.3,2751.0,3.63501]
[1724476077331,2.3546,2751.3,2750.8,3.63518]
[1724476077820,2.3546,2751.3,2750.9,3.63516]
[1724476091130,2.3546,2751.3,2750.8,7.27041]
[1724476091330,2.3546,2751.3,2750.9,3.63514]
[1724476093150,2.3253,2751.5,2751.0,3.63497]
[1724476094214,2.3253,2751.5,2751.1,3.63489]
[1724476099456,2.3253,2751.5,2751.0,3.63497]
[1724476100419,5.95968,2751.5,2751.0,3.63497]
[1724476101352,2.3253,2751.5,2751.0,3.63497]
[1724476101563,2.3253,2751.5,2751.0,7.26992]
[1724476102430,2.3253,2751.5,2751.0,3.63495]
[1724476102633,2.3253,2751.5,2751.0,7.26991]
[1724476103520,2.3253,2751.5,2751.0,3.63495]
[1724476105655,2.3253,2751.5,2751.0,7.26991]
[1724476105855,2.3253,2751.5,2751.0,3.63495]
[1724476107160,5.95971,2751.5,2751.0,3.63495]
[1724476107459,2.3931,2751.4,2751.0,3.63495]
[1724476136423,6.02764,2751.4,2750.9,3.63515]
[1724476139744,6.02764,2751.4,2751.0,1.26395687]
[1724476140052,6.02764,2751.4,2750.9,3.6351]
[1724476140922,6.02764,2751.4,2750.8,0.75963393]
[1724476140923,2.3928,2752.1,2751.4,2.3154]
[1724476141137,2.3928,2752.1,2751.7,7.26805]
[1724476141327,2.3928,2752.1,2751.7,7.26803]
[1724476141752,2.3928,2752.1,2751.7,3.634]
[1724476142055,2.3928,2752.1,2751.8,3.63396]
[1724476142913,2.3928,2752.1,2751.7,3.634]
[1724476143254,2.3928,2752.1,2750.9,0.98949939]
[1724476143255,3.63405,2751.8,2751.1,4.39444393]
[1724476143414,2.3928,2751.7,2751.2,6.79411171]
[1724476143619,2.3928,2751.7,2751.2,3.63474]
[1724476144337,2.3928,2751.7,2751.2,4.85876083]
[1724476144945,2.3928,2751.7,2751.3,3.63463]
[1724476146756,2.3928,2751.7,2751.4,3.63449]
[1724476147619,2.3928,2751.7,2751.5,3.63436]
[1724476148452,3.63366,2752.1,2751.5,3.63436]
[1724476148752,2.3928,2752.0,2751.5,3.63436]
[1724476152464,6.02653,2752.0,2751.5,3.63436]
[1724476153119,2.3928,2752.0,2751.5,3.63436]
[1724476153323,2.3928,2752.0,2751.5,7.26866]
[1724476153939,2.3928,2752.0,2751.5,3.6343]
[1724476154239,2.3928,2752.0,2751.5,3.63428]
[1724476154576,2.3928,2752.0,2751.5,4.592704]
[1724476154801,2.3928,2752.0,2751.5,0.958424]
[1724476155086,2.3928,2752.2,2751.8,3.63397]
[1724476155436,7.45,2752.3,2751.8,3.63397]
[1724476156135,6.02584,2752.6,2751.7,2.3154]
[1724476156365,9.65889,2752.6,2751.9,7.26753]
[1724476156569,6.02584,2752.6,2751.9,3.63376]
[1724476157162,6.02584,2752.6,2752.0,3.63364]
[1724476159159,6.02584,2752.6,2752.1,3.63356]
[1724476160511,2.3928,2752.6,2752.2,3.63344]
[1724476160866,5.94744,2752.8,2752.2,6.35998071]